fUSD/lending_fUSD_20260703
["ID","MTS","AMOUNT","RATE_DAILY","PERIOD"]
[426922755,1783017059000,-6202.0,0.00035,120]
[426922752,1783017059000,-65977.3231339,0.00035,120]
[426922758,1783017059000,-454677.62419193,0.00035,120]
[426922760,1783017059000,-827.80422968,0.00035,3]
[426922761,1783017059000,-500000.0,0.00035,90]
[426922759,1783017059000,-966.74789886,0.00035,120]
[426922768,1783017059000,-194.64,0.0003508,30]
[426922764,1783017059000,-1551.23,0.00035008,30]
[426922762,1783017059000,-10000.0,0.00035,120]
[426922767,1783017059000,-22500.0,0.00035062,2]
[426922763,1783017059000,-4000.0,0.00035,2]
[426922765,1783017059000,-22500.0,0.00035062,2]
[426922766,1783017059000,-22499.99,0.00035062,2]
[426922770,1783017059000,-1000.0,0.00035099,30]
[426922769,1783017059000,-1250.03,0.00035083,2]
[426922798,1783017059000,-172.09574065,0.000352,120]
[426922809,1783017059000,-167.06326901,0.000352,120]
[426922800,1783017059000,-172.22374087,0.000352,120]
[426922835,1783017059000,-294.06348725,0.00035288,2]
[426922837,1783017059000,-2500.0,0.000353,14]
[426922836,1783017059000,-226.58835194,0.00035288,2]
[426922838,1783017059000,-524.21,0.000353,120]
[426922832,1783017059000,-228.93302892,0.00035284,2]
[426922833,1783017059000,-5000.0,0.00035285,2]
[426922831,1783017059000,-5000.0,0.00035284,2]
[426922842,1783017059000,-255.10216008,0.00035358,14]
[426922846,1783017059000,-500.0,0.00035412,120]
[426922852,1783017059000,-231.028871,0.00035412,120]
[426922841,1783017059000,-22500.0,0.00035313,2]
[426922844,1783017059000,-162.0,0.0003538,120]
[426922840,1783017059000,-529.91142117,0.00035312,2]
[426922843,1783017059000,-22500.0,0.00035375,2]
[426922847,1783017059000,-649.2014576,0.00035412,120]
[426922849,1783017059000,-167.9096101,0.00035412,120]
[426922848,1783017059000,-292.94452,0.00035412,120]
[426922850,1783017059000,-214.3227063,0.00035412,120]
[426922851,1783017059000,-243.0690201,0.00035412,120]
[426922855,1783017059000,-249.0017555,0.00035412,120]
[426922795,1783017059000,-187.60966566,0.000352,120]
[426922859,1783017059000,-350.0,0.00035478,38]
[426922856,1783017059000,-2027.81806257,0.00035423,15]
[426922854,1783017059000,-358.4210541,0.00035412,120]
[426922857,1783017059000,-22500.0,0.00035438,2]
[426922858,1783017059000,-1250.03,0.00035442,2]
[426922845,1783017059000,-194.64,0.0003541,60]
[426922834,1783017059000,-150.0,0.00035285,2]
[426922853,1783017059000,-748.4983793,0.00035412,120]
[426922830,1783017059000,-5000.0,0.00035284,2]
[426922839,1783017059000,-150.0,0.00035312,30]
[426922802,1783017059000,-276.84398067,0.000352,120]
[426922803,1783017059000,-186.89504541,0.000352,120]
[426922811,1783017059000,-177.86004915,0.000352,120]
[426922817,1783017059000,-700.19853125,0.00035222,2]
[426922816,1783017059000,-158.70398359,0.00035212,7]
[426922807,1783017059000,-227.89821908,0.000352,120]
[426922812,1783017059000,-256.28316234,0.000352,120]
[426922810,1783017059000,-201.49498663,0.000352,120]
[426922814,1783017059000,-215.49010706,0.000352,120]
[426922815,1783017059000,-235.0,0.00035205,30]
[426922806,1783017059000,-183.54174638,0.000352,120]
[426922813,1783017059000,-173.45250248,0.000352,120]
[426922805,1783017059000,-199.67897868,0.000352,120]
[426922819,1783017059000,-151.352357,0.00035236,93]
[426922808,1783017059000,-200.0,0.000352,120]
[426922826,1783017059000,-265.24612026,0.00035283,2]
[426922828,1783017059000,-5000.0,0.00035284,2]
[426922825,1783017059000,-150.24832765,0.00035279,2]
[426922822,1783017059000,-2611.93,0.0003525,2]
[426922827,1783017059000,-6896.2026673,0.00035284,2]
[426922824,1783017059000,-5045.46817562,0.00035272,30]
[426922821,1783017059000,-22500.0,0.0003525,2]
[426922820,1783017059000,-194.64,0.0003524,46]
[426922818,1783017059000,-5010.21187332,0.00035235,10]
[426922829,1783017059000,-5000.0,0.00035284,2]
[426922823,1783017059000,-219.57970072,0.00035267,14]
[426922883,1783017060000,-607.16,0.00035558,3]
[426922889,1783017060000,-194.64,0.0003557,72]
[426922886,1783017060000,-606.2,0.00035558,3]
[426922888,1783017060000,-22500.0,0.00035563,2]
[426922887,1783017060000,-606.2,0.00035558,3]
[426922891,1783017060000,-594.55,0.00035576,3]
[426922890,1783017060000,-594.55,0.00035576,3]
[426922892,1783017060000,-594.55,0.00035576,3]
[426922893,1783017060000,-2053.0,0.00035589,120]
[426922894,1783017060000,-740.01419659,0.00035589,120]
[426922899,1783017060000,-1551.23,0.00035616,30]
[426922895,1783017060000,-200.0,0.00035602,5]
[426922898,1783017060000,-197.48,0.00035616,120]
[426922897,1783017060000,-4532.89205673,0.0003561,2]
[426922900,1783017060000,-2126.53174144,0.00035616,60]
[426922901,1783017060000,-1000.0,0.00035616,21]
[426922908,1783017060000,-1000.0,0.00035616,21]
[426922911,1783017060000,-1000.0,0.00035616,21]
[426922909,1783017060000,-1000.0,0.00035616,21]
[426922882,1783017060000,-607.16,0.00035558,3]
[426922896,1783017060000,-171720.43472746,0.0003561,2]
[426922881,1783017060000,-10000.0,0.00035555,120]
[426922869,1783017060000,-800.0,0.000355,7]
[426922885,1783017060000,-606.2,0.00035558,3]
[426922860,1783017060000,-158.70398359,0.00035486,7]
[426922863,1783017060000,-1000.0,0.000355,30]
[426922861,1783017060000,-346.54,0.00035497,2]
[426922865,1783017060000,-800.0,0.000355,7]
[426922862,1783017060000,-15160.0,0.000355,30]
[426922866,1783017060000,-800.0,0.000355,7]
[426922864,1783017060000,-1661.79829553,0.000355,30]
[426922868,1783017060000,-800.0,0.000355,7]
[426922867,1783017060000,-800.0,0.000355,7]
[426922884,1783017060000,-607.16,0.00035558,3]
[426922872,1783017060000,-786.0,0.00035513,2]
[426922874,1783017060000,-19721.20068038,0.00035529,7]
[426922876,1783017060000,-607.16,0.00035538,3]
[426922873,1783017060000,-5984.71,0.00035521,7]
[426922877,1783017060000,-607.16,0.00035538,3]
[426922871,1783017060000,-786.0,0.00035513,2]
[426922870,1783017060000,-22500.0,0.000355,2]
[426922878,1783017060000,-607.16,0.00035538,3]
[426922879,1783017060000,-200.0,0.00035539,5]
[426922880,1783017060000,-150.0,0.0003555,7]
[426922875,1783017060000,-152.355367,0.00035537,97]
[426922905,1783017060000,-1000.0,0.00035616,21]
[426922903,1783017060000,-1000.0,0.00035616,21]
[426922912,1783017060000,-1000.0,0.00035616,21]
[426922930,1783017060000,-1000.0,0.00035616,21]
[426922933,1783017060000,-1000.0,0.00035616,21]
[426922943,1783017060000,-1000.0,0.00035616,21]
[426922945,1783017060000,-1000.0,0.00035616,21]
[426922947,1783017060000,-1000.0,0.00035616,21]
[426922938,1783017060000,-1000.0,0.00035616,21]
[426922936,1783017060000,-1000.0,0.00035616,21]
[426922944,1783017060000,-1000.0,0.00035616,21]
[426922946,1783017060000,-1000.0,0.00035616,21]
[426922937,1783017060000,-1000.0,0.00035616,21]
[426922940,1783017060000,-1000.0,0.00035616,21]
[426922942,1783017060000,-1000.0,0.00035616,21]
[426922939,1783017060000,-1000.0,0.00035616,21]
[426922948,1783017060000,-1000.0,0.00035616,21]
[426922949,1783017060000,-1000.0,0.00035616,21]
[426922951,1783017060000,-220.46,0.00035616,120]
[426922950,1783017060000,-556.87430095,0.00035616,21]
[426922953,1783017060000,-600.0,0.00035616,120]
[426922952,1783017060000,-3739.0,0.00035616,120]
[426922954,1783017060000,-600.0,0.00035616,120]
[426922906,1783017060000,-1000.0,0.00035616,21]
[426922928,1783017060000,-1000.0,0.00035616,21]
[426922926,1783017060000,-1000.0,0.00035616,21]
[426922941,1783017060000,-1000.0,0.00035616,21]
[426922931,1783017060000,-1000.0,0.00035616,21]
[426922910,1783017060000,-1000.0,0.00035616,21]
[426922932,1783017060000,-1000.0,0.00035616,21]
[426922902,1783017060000,-1000.0,0.00035616,21]
[426922904,1783017060000,-1000.0,0.00035616,21]
[426922907,1783017060000,-1000.0,0.00035616,21]
[426922923,1783017060000,-1000.0,0.00035616,21]
[426922914,1783017060000,-1000.0,0.00035616,21]
[426922924,1783017060000,-1000.0,0.00035616,21]
[426922915,1783017060000,-1000.0,0.00035616,21]
[426922917,1783017060000,-1000.0,0.00035616,21]
[426922913,1783017060000,-1000.0,0.00035616,21]
[426922919,1783017060000,-1000.0,0.00035616,21]
[426922918,1783017060000,-1000.0,0.00035616,21]
[426922920,1783017060000,-1000.0,0.00035616,21]
[426922921,1783017060000,-1000.0,0.00035616,21]
[426922922,1783017060000,-1000.0,0.00035616,21]
[426922934,1783017060000,-1000.0,0.00035616,21]
[426922925,1783017060000,-1000.0,0.00035616,21]
[426922935,1783017060000,-1000.0,0.00035616,21]
[426922916,1783017060000,-1000.0,0.00035616,21]
[426922927,1783017060000,-1000.0,0.00035616,21]
[426922929,1783017060000,-1000.0,0.00035616,21]
[426922994,1783017061000,-1189.443,0.00035717,30]
[426922989,1783017061000,-1948.2415,0.000357,120]
[426922988,1783017061000,-200.0,0.00035688,5]
[426922992,1783017061000,-1312.86,0.000357,60]
[426922990,1783017061000,-13607.5066,0.000357,120]
[426922998,1783017061000,-221.17458011,0.00035758,17]
[426922993,1783017061000,-801.94,0.000357,120]
[426922996,1783017061000,-18619.51,0.0003575,2]
[426922997,1783017061000,-811.77252155,0.00035756,2]
[426922991,1783017061000,-1312.863,0.000357,120]
[426922987,1783017061000,-22500.0,0.00035688,2]
[426922986,1783017061000,-415.92,0.00035656,3]
[426922995,1783017061000,-194.64,0.0003573,84]
[426923005,1783017061000,-30000.0,0.000358,30]
[426923004,1783017061000,-2313.0,0.000358,15]
[426923003,1783017061000,-1434.75868823,0.00035772,2]
[426923006,1783017061000,-576200.34904623,0.000358,120]
[426923002,1783017061000,-909.36926503,0.00035772,2]
[426923009,1783017061000,-9486.65965148,0.000358,120]
[426923007,1783017061000,-572.150375,0.000358,30]
[426923010,1783017061000,-13465.86020687,0.000358,90]
[426923008,1783017061000,-83096.19035465,0.000358,4]
[426923000,1783017061000,-1327.93602337,0.00035772,2]
[426923011,1783017061000,-226.8477194,0.000358,2]
[426923012,1783017061000,-152.0,0.00035831,12]
[426923013,1783017061000,-154.358377,0.00035838,100]
[426922982,1783017061000,-193.0,0.00035616,120]
[426922999,1783017061000,-158.70398359,0.0003576,7]
[426922980,1783017061000,-151.0,0.00035616,30]
[426922955,1783017061000,-600.0,0.00035616,90]
[426922983,1783017061000,-22500.0,0.00035625,2]
[426923015,1783017061000,-786.0,0.00035883,2]
[426922958,1783017061000,-3346.28793,0.00035616,30]
[426922959,1783017061000,-3346.28793,0.00035616,30]
[426922960,1783017061000,-3346.28793,0.00035616,30]
[426922957,1783017061000,-3346.28793,0.00035616,30]
[426922956,1783017061000,-436.0,0.00035616,90]
[426922962,1783017061000,-3346.28793,0.00035616,30]
[426922963,1783017061000,-3346.28793,0.00035616,30]
[426922964,1783017061000,-3346.28793,0.00035616,30]
[426922961,1783017061000,-3346.28793,0.00035616,30]
[426922972,1783017061000,-3346.28793,0.00035616,30]
[426922973,1783017061000,-3346.28793,0.00035616,30]
[426922968,1783017061000,-3346.28793,0.00035616,30]
[426922971,1783017061000,-3346.28793,0.00035616,30]
[426922965,1783017061000,-3346.28793,0.00035616,30]
[426922966,1783017061000,-3346.28793,0.00035616,30]
[426922970,1783017061000,-3346.28793,0.00035616,30]
[426922969,1783017061000,-3346.28793,0.00035616,30]
[426922967,1783017061000,-3346.28793,0.00035616,30]
[426922974,1783017061000,-3346.28793,0.00035616,30]
[426922975,1783017061000,-3346.28793,0.00035616,30]
[426922976,1783017061000,-3346.287937,0.00035616,30]
[426922985,1783017061000,-13864.92,0.00035644,30]
[426922977,1783017061000,-50000.0,0.00035616,15]
[426922981,1783017061000,-170.432373,0.00035616,30]
[426922979,1783017061000,-151.0,0.00035616,30]
[426922978,1783017061000,-17897.48,0.00035616,15]
[426922984,1783017061000,-50000.0,0.00035644,30]
[426923014,1783017061000,-786.0,0.00035883,2]
[426923001,1783017061000,-1327.93602337,0.00035772,2]
[426923019,1783017061000,-78437.27803927,0.00035899,7]
[426923049,1783017061000,-12991.14163948,0.00036,60]
[426923051,1783017061000,-20255.0,0.00036,120]
[426923050,1783017061000,-5396.09069796,0.00036,120]
[426923052,1783017061000,-4584.73263867,0.00036,60]
[426923059,1783017061000,-5000.0,0.00036,60]
[426923055,1783017061000,-785.93876807,0.00036,120]
[426923053,1783017061000,-35000.0,0.00036,120]
[426923054,1783017061000,-37176.18694986,0.00036,120]
[426923056,1783017061000,-4900.0,0.00036,7]
[426923057,1783017061000,-288479.337,0.00036,30]
[426923058,1783017061000,-108730.84123343,0.00036,120]
[426923071,1783017061000,-1000.0,0.00036,120]
[426923072,1783017061000,-2281.48540205,0.00036,90]
[426923048,1783017061000,-1026.80150015,0.00036,120]
[426923061,1783017061000,-1060.0,0.00036,60]
[426923062,1783017061000,-682.6,0.00036,60]
[426923066,1783017061000,-300000.0,0.00036,3]
[426923063,1783017061000,-60006.14738358,0.00036,60]
[426923065,1783017061000,-29235.59153982,0.00036,14]
[426923064,1783017061000,-5300.0,0.00036,90]
[426923069,1783017061000,-1000.0,0.00036,120]
[426923070,1783017061000,-1000.0,0.00036,120]
[426923067,1783017061000,-3074.1782118,0.00036,15]
[426923068,1783017061000,-1000.0,0.00036,120]
[426923076,1783017061000,-2000.0,0.00036,36]
[426923073,1783017061000,-21812.17379297,0.00036,30]
[426923075,1783017061000,-30000.0,0.00036,30]
[426923077,1783017061000,-500.0,0.00036,120]
[426923060,1783017061000,-20000.0,0.00036,120]
[426923042,1783017061000,-50000.0,0.00036,27]
[426923016,1783017061000,-786.0,0.00035883,2]
[426923041,1783017061000,-3811.0,0.00035995,7]
[426923040,1783017061000,-618.0,0.0003599,120]
[426923017,1783017061000,-786.0,0.00035883,2]
[426923018,1783017061000,-178.953,0.00035888,120]
[426923021,1783017061000,-80000.0,0.000359,30]
[426923020,1783017061000,-1786.21767789,0.000359,30]
[426923022,1783017061000,-50000.0,0.000359,120]
[426923026,1783017061000,-756347.46048652,0.000359,90]
[426923023,1783017061000,-100000.0,0.000359,120]
[426923025,1783017061000,-194.65,0.000359,93]
[426923029,1783017061000,-443.16,0.000359,90]
[426923028,1783017061000,-181518.22390082,0.000359,60]
[426923024,1783017061000,-216.2,0.000359,120]
[426923027,1783017061000,-500000.0,0.000359,120]
[426923032,1783017061000,-150.0,0.00035969,2]
[426923031,1783017061000,-20000.0,0.00035923,35]
[426923030,1783017061000,-200.0,0.000359,13]
[426923074,1783017061000,-3000.0,0.00036,2]
[426923039,1783017061000,-663.0,0.0003599,120]
[426923037,1783017061000,-114299.44624365,0.0003599,120]
[426923045,1783017061000,-5396.17636819,0.00036,7]
[426923046,1783017061000,-36031.51573181,0.00036,120]
[426923047,1783017061000,-2456.35495591,0.00036,14]
[426923038,1783017061000,-2380.0,0.0003599,120]
[426923043,1783017061000,-12000.0,0.00036,31]
[426923035,1783017061000,-623.83,0.0003598,120]
[426923036,1783017061000,-110193.22138064,0.00035987,14]
[426923034,1783017061000,-665.36,0.0003598,120]
[426923033,1783017061000,-2383.09,0.0003598,120]
[426923044,1783017061000,-191.74,0.00036,5]
[426923116,1783017062000,-1293.40795003,0.00036,120]
[426923113,1783017062000,-188.0,0.00036,30]
[426923117,1783017062000,-316.0,0.00036,30]
[426923119,1783017062000,-52729.66244879,0.00036,2]
[426923115,1783017062000,-185.0,0.00036,2]
[426923121,1783017062000,-6126.640231,0.00036,30]
[426923112,1783017062000,-5000.0,0.00036,2]
[426923110,1783017062000,-2825.0,0.00036,30]
[426923122,1783017062000,-179.0,0.00036,30]
[426923120,1783017062000,-179.0,0.00036,30]
[426923114,1783017062000,-185.0,0.00036,30]
[426923111,1783017062000,-377.0,0.00036,30]
[426923118,1783017062000,-1000.0,0.00036,60]
[426923137,1783017062000,-153.0,0.00036,30]
[426923125,1783017062000,-167.26009265,0.00036,2]
[426923135,1783017062000,-151.0,0.00036,30]
[426923129,1783017062000,-155.0,0.00036,30]
[426923124,1783017062000,-210.0,0.00036,2]
[426923127,1783017062000,-213.0,0.00036,30]
[426923132,1783017062000,-156.0,0.00036,30]
[426923130,1783017062000,-156.0,0.00036,30]
[426923126,1783017062000,-160.0,0.00036,2]
[426923134,1783017062000,-156.0,0.00036,30]
[426923128,1783017062000,-8403.0,0.00036,106]
[426923133,1783017062000,-253.0,0.00036,30]
[426923131,1783017062000,-158.0,0.00036,30]
[426923107,1783017062000,-800.0,0.00036,7]
[426923123,1783017062000,-159.0,0.00036,30]
[426923109,1783017062000,-2322.4231,0.00036,60]
[426923090,1783017062000,-25000.0,0.00036,60]
[426923100,1783017062000,-9261.0,0.00036,30]
[426923136,1783017062000,-187.0,0.00036,30]
[426923078,1783017062000,-588.56977862,0.00036,7]
[426923084,1783017062000,-389.1226519,0.00036,2]
[426923082,1783017062000,-10000.0,0.00036,120]
[426923083,1783017062000,-25000.0,0.00036,120]
[426923080,1783017062000,-9863.08878837,0.00036,5]
[426923081,1783017062000,-1000.0,0.00036,120]
[426923079,1783017062000,-10000.0,0.00036,120]
[426923086,1783017062000,-151.51312882,0.00036,107]
[426923096,1783017062000,-3563.02884341,0.00036,120]
[426923088,1783017062000,-624.77547554,0.00036,2]
[426923095,1783017062000,-1000.0,0.00036,2]
[426923094,1783017062000,-6275.0,0.00036,90]
[426923106,1783017062000,-800.0,0.00036,7]
[426923087,1783017062000,-10000.0,0.00036,120]
[426923089,1783017062000,-10000.0,0.00036,120]
[426923092,1783017062000,-199.97379873,0.00036,120]
[426923091,1783017062000,-2924.0,0.00036,120]
[426923093,1783017062000,-10000.0,0.00036,120]
[426923099,1783017062000,-538.40340635,0.00036,120]
[426923097,1783017062000,-12666.0,0.00036,120]
[426923098,1783017062000,-1000.0,0.00036,30]
[426923108,1783017062000,-800.0,0.00036,7]
[426923101,1783017062000,-3664.28772692,0.00036,20]
[426923105,1783017062000,-800.0,0.00036,7]
[426923102,1783017062000,-2167.36444667,0.00036,120]
[426923103,1783017062000,-2284.3868164,0.00036,7]
[426923104,1783017062000,-50151.96694724,0.00036,30]
[426923085,1783017062000,-5356.44,0.00036,2]
[426923138,1783017062000,-156.0,0.00036,30]
[426923145,1783017062000,-8403.69351449,0.00036017,7]
[426923139,1783017062000,-219.0,0.00036,30]
[426923179,1783017062000,-3648.06616662,0.00036137,8]
[426923183,1783017062000,-300.0,0.00036139,3]
[426923180,1783017062000,-3648.06616662,0.00036137,8]
[426923181,1783017062000,-3648.06616662,0.00036137,8]
[426923171,1783017062000,-36216.37070281,0.00036124,30]
[426923177,1783017062000,-3648.06616662,0.00036137,8]
[426923172,1783017062000,-3648.06616665,0.00036137,8]
[426923173,1783017062000,-3648.06616662,0.00036137,8]
[426923174,1783017062000,-3648.06616662,0.00036137,8]
[426923176,1783017062000,-3648.06616662,0.00036137,8]
[426923175,1783017062000,-3648.06616662,0.00036137,8]
[426923184,1783017062000,-239.45,0.0003614,7]
[426923186,1783017062000,-237946.02,0.00036153,30]
[426923178,1783017062000,-3648.06616662,0.00036137,8]
[426923187,1783017062000,-2739.88914127,0.0003618,30]
[426923189,1783017062000,-8583.0,0.00036197,10]
[426923188,1783017062000,-500.0,0.0003618,120]
[426923190,1783017062000,-500.0,0.000362,14]
[426923196,1783017062000,-786.0,0.00036253,2]
[426923192,1783017062000,-5984.73,0.00036206,7]
[426923194,1783017062000,-303.41936354,0.00036216,2]
[426923191,1783017062000,-582.5,0.000362,14]
[426923193,1783017062000,-377.68432704,0.00036208,2]
[426923195,1783017062000,-194.65,0.0003623,108]
[426923197,1783017062000,-786.0,0.00036253,2]
[426923144,1783017062000,-202361.05053744,0.00036017,7]
[426923198,1783017062000,-786.0,0.00036253,2]
[426923199,1783017062000,-151.30488,0.00036272,7]
[426923185,1783017062000,-20000.0,0.00036145,4]
[426923182,1783017062000,-156.361387,0.00036139,104]
[426923200,1783017062000,-175.8045071,0.00036276,2]
[426923169,1783017062000,-760.56158601,0.00036113,2]
[426923168,1783017062000,-13424.34805689,0.00036111,21]
[426923140,1783017062000,-155.0,0.00036,30]
[426923142,1783017062000,-400.0,0.00036,60]
[426923143,1783017062000,-1368.0,0.00036,7]
[426923147,1783017062000,-3600.07082522,0.00036023,30]
[426923157,1783017062000,-5000.0,0.000361,60]
[426923148,1783017062000,-158.70398359,0.00036034,7]
[426923150,1783017062000,-194.65,0.0003606,101]
[426923156,1783017062000,-5000.0,0.000361,60]
[426923158,1783017062000,-5000.0,0.000361,60]
[426923149,1783017062000,-375.86,0.00036046,10]
[426923146,1783017062000,-4147.39883229,0.00036017,7]
[426923155,1783017062000,-5000.0,0.000361,60]
[426923141,1783017062000,-157.0,0.00036,30]
[426923151,1783017062000,-439.05455195,0.00036064,2]
[426923160,1783017062000,-5000.0,0.000361,60]
[426923165,1783017062000,-5000.0,0.000361,60]
[426923167,1783017062000,-216.69616408,0.000361,30]
[426923166,1783017062000,-201.0,0.000361,7]
[426923152,1783017062000,-293.33303218,0.00036082,2]
[426923163,1783017062000,-5000.0,0.000361,60]
[426923164,1783017062000,-5000.0,0.000361,60]
[426923162,1783017062000,-5000.0,0.000361,60]
[426923161,1783017062000,-5000.0,0.000361,60]
[426923159,1783017062000,-5000.0,0.000361,60]
[426923153,1783017062000,-5000.0,0.000361,60]
[426923154,1783017062000,-5000.0,0.000361,60]
[426923170,1783017062000,-151.0,0.00036113,2]
[426923240,1783017063000,-2000.0,0.00036381,120]
[426923238,1783017063000,-1482.54,0.00036381,120]
[426923242,1783017063000,-400.95,0.00036381,120]
[426923236,1783017063000,-2000.0,0.00036381,120]
[426923227,1783017063000,-182.12,0.0003635,2]
[426923231,1783017063000,-352.01390763,0.00036377,120]
[426923229,1783017063000,-187.83103458,0.00036356,2]
[426923233,1783017063000,-304.65273946,0.00036377,120]
[426923230,1783017063000,-811.77252155,0.00036373,2]
[426923232,1783017063000,-156.40222689,0.00036377,120]
[426923241,1783017063000,-638.91,0.00036381,120]
[426923246,1783017063000,-150.01,0.00036381,120]
[426923248,1783017063000,-209.34,0.00036381,120]
[426923239,1783017063000,-916.23,0.00036381,120]
[426923244,1783017063000,-290.0,0.00036381,120]
[426923243,1783017063000,-529.29,0.00036381,120]
[426923237,1783017063000,-2000.0,0.00036381,120]
[426923247,1783017063000,-323.52,0.00036381,120]
[426923249,1783017063000,-150.0,0.00036384,30]
[426923251,1783017063000,-150.0,0.00036384,30]
[426923254,1783017063000,-143059.38177419,0.000364,2]
[426923253,1783017063000,-194.65,0.0003639,113]
[426923250,1783017063000,-778.34351277,0.00036384,30]
[426923261,1783017063000,-334.286023,0.000364,7]
[426923228,1783017063000,-350.0,0.00036356,40]
[426923245,1783017063000,-713.7,0.00036381,120]
[426923225,1783017063000,-158.70398359,0.00036308,7]
[426923210,1783017063000,-186.03868974,0.000363,120]
[426923235,1783017063000,-1344.24,0.00036381,120]
[426923260,1783017063000,-328.286023,0.000364,7]
[426923207,1783017063000,-188.92540657,0.000363,120]
[426923206,1783017063000,-187.60966566,0.000363,120]
[426923208,1783017063000,-280.34641386,0.000363,120]
[426923205,1783017063000,-1000.0,0.000363,120]
[426923201,1783017063000,-643.0,0.00036282,2]
[426923203,1783017063000,-182.0,0.00036298,5]
[426923204,1783017063000,-1208.0,0.00036298,7]
[426923202,1783017063000,-630.19706428,0.0003629,11]
[426923212,1783017063000,-190.95961087,0.000363,120]
[426923209,1783017063000,-172.09574065,0.000363,120]
[426923214,1783017063000,-186.89504541,0.000363,120]
[426923215,1783017063000,-906.60345025,0.000363,120]
[426923211,1783017063000,-172.22374087,0.000363,120]
[426923213,1783017063000,-276.84398067,0.000363,120]
[426923216,1783017063000,-199.67897868,0.000363,120]
[426923217,1783017063000,-183.54174638,0.000363,120]
[426923221,1783017063000,-177.86004915,0.000363,120]
[426923220,1783017063000,-167.06326901,0.000363,120]
[426923219,1783017063000,-200.0,0.000363,120]
[426923218,1783017063000,-227.89821908,0.000363,120]
[426923222,1783017063000,-256.28316234,0.000363,120]
[426923234,1783017063000,-451.21514103,0.00036377,120]
[426923223,1783017063000,-173.45250248,0.000363,120]
[426923224,1783017063000,-215.49010706,0.000363,120]
[426923226,1783017063000,-607.06,0.0003635,2]
[426923252,1783017063000,-518.9063685,0.00036384,30]
[426923296,1783017063000,-328.286023,0.000364,14]
[426923255,1783017063000,-274.4665627,0.000364,2]
[426923312,1783017063000,-346.651459,0.000364,14]
[426923297,1783017063000,-334.286023,0.000364,14]
[426923289,1783017063000,-331.286023,0.000364,14]
[426923298,1783017063000,-331.286023,0.000364,14]
[426923287,1783017063000,-328.286023,0.000364,14]
[426923295,1783017063000,-331.286023,0.000364,14]
[426923293,1783017063000,-328.286023,0.000364,14]
[426923294,1783017063000,-334.286023,0.000364,14]
[426923292,1783017063000,-331.286023,0.000364,14]
[426923290,1783017063000,-328.286023,0.000364,14]
[426923291,1783017063000,-334.286023,0.000364,14]
[426923299,1783017063000,-328.286023,0.000364,14]
[426923301,1783017063000,-346.651459,0.000364,7]
[426923308,1783017063000,-370.651466,0.000364,14]
[426923302,1783017063000,-343.651459,0.000364,7]
[426923304,1783017063000,-346.651459,0.000364,7]
[426923307,1783017063000,-346.651459,0.000364,7]
[426923306,1783017063000,-349.651459,0.000364,7]
[426923305,1783017063000,-343.651459,0.000364,7]
[426923300,1783017063000,-370.651466,0.000364,7]
[426923310,1783017063000,-343.651459,0.000364,14]
[426923309,1783017063000,-346.651459,0.000364,14]
[426923311,1783017063000,-349.651459,0.000364,14]
[426923313,1783017063000,-343.651459,0.000364,14]
[426923257,1783017063000,-10000.0,0.000364,120]
[426923288,1783017063000,-334.286023,0.000364,14]